[Event "*** Titled Tuesday Blitz"]
[Site "Chess.com"]
[Date "2021.02.02"]
[Round "4"]
[White "Kale36"]
[Black "manmanlai1"]
[Result "0-1"]
[WhiteElo "2285"]
[BlackElo "2463"]
[TimeControl "180+1"]
[EndTime "10:42:06 PST"]
[Termination "manmanlai1 won by resignation"]

1. b3 {[%clk 0:02:59.1]} 1... e5 {[%clk 0:02:59]} 2. Bb2 {[%clk 0:02:59.4]} 2...
Nc6 {[%clk 0:02:59.4]} 3. e3 {[%clk 0:02:59.6]} 3... Nf6 {[%clk 0:02:59.4]} 4.
Bb5 {[%clk 0:02:58.5]} 4... d6 {[%clk 0:02:58.9]} 5. d4 {[%clk 0:02:58.1]} 5...
exd4 {[%clk 0:02:58]} 6. Qxd4 {[%clk 0:02:57.9]} 6... Bd7 {[%clk 0:02:57.5]} 7.
Bxc6 {[%clk 0:02:58]} 7... Bxc6 {[%clk 0:02:55.9]} 8. Nf3 {[%clk 0:02:57.9]}
8... Be7 {[%clk 0:02:54.9]} 9. c4 {[%clk 0:02:58]} 9... Qd7 {[%clk 0:02:54.9]}
10. h3 {[%clk 0:02:55.5]} 10... b6 {[%clk 0:02:51.3]} 11. Nc3 {[%clk 0:02:54.7]}
11... O-O-O {[%clk 0:02:25.1]} 12. O-O-O {[%clk 0:02:37.3]} 12... Bb7 {[%clk
0:02:24.2]} 13. Nd5 {[%clk 0:02:10.7]} 13... Nxd5 {[%clk 0:02:20.5]} 14. cxd5
{[%clk 0:02:11.6]} 14... Bf6 {[%clk 0:02:20.7]} 15. Qc4 {[%clk 0:02:10.5]} 15...
Bxb2+ {[%clk 0:02:15]} 16. Kxb2 {[%clk 0:02:11.4]} 16... Rhe8 {[%clk 0:02:09.5]}
17. Rc1 {[%clk 0:02:05.8]} 17... Kb8 {[%clk 0:02:05.2]} 18. Rc2 {[%clk
0:01:52.6]} 18... Re7 {[%clk 0:02:01.7]} 19. Rhc1 {[%clk 0:01:52.2]} 19... Qf5
{[%clk 0:02:00.8]} 20. e4 {[%clk 0:01:41.8]} 20... Qxe4 {[%clk 0:01:42.5]} 21.
Qxe4 {[%clk 0:01:40.2]} 21... Rxe4 {[%clk 0:01:43.4]} 22. Rxc7 {[%clk
0:01:40.7]} 22... Re2+ {[%clk 0:01:43]} 23. Ka3 {[%clk 0:01:37.1]} 23... Rxf2
{[%clk 0:01:31.2]} 24. Rxf7 {[%clk 0:01:32.9]} 24... Bxd5 {[%clk 0:01:29.9]} 25.
Rxg7 {[%clk 0:01:33]} 25... Rc8 {[%clk 0:01:05.4]} 26. Rxc8+ {[%clk 0:01:27.7]}
26... Kxc8 {[%clk 0:01:06.3]} 27. Rxh7 {[%clk 0:01:12.6]} 27... a5 {[%clk
0:01:05.4]} 28. Nd4 {[%clk 0:00:57.7]} 28... Rxg2 {[%clk 0:01:01.6]} 29. Nf5
{[%clk 0:00:52.2]} 29... Kb8 {[%clk 0:00:50.4]} 30. Nxd6 {[%clk 0:00:51]} 30...
Rg6 {[%clk 0:00:44.8]} 31. Nc4 {[%clk 0:00:48.2]} 31... Rc6 {[%clk 0:00:35.6]}
32. Ne5 {[%clk 0:00:40.1]} 32... Re6 {[%clk 0:00:23.9]} 33. Nd7+ {[%clk
0:00:36.6]} 33... Kc8 {[%clk 0:00:23.3]} 34. Nf8 {[%clk 0:00:27.1]} 34... Rf6
{[%clk 0:00:20.4]} 35. Rh8 {[%clk 0:00:25.6]} 35... Kc7 {[%clk 0:00:18.4]} 36.
Nh7 {[%clk 0:00:25.5]} 36... Rh6 {[%clk 0:00:17.3]} 37. b4 {[%clk 0:00:20.2]}
37... Rxh3+ {[%clk 0:00:15.8]} 38. Kb2 {[%clk 0:00:16.6]} 38... axb4 {[%clk
0:00:15.2]} 39. Rf8 {[%clk 0:00:11.9]} 39... Rh2+ {[%clk 0:00:15]} 40. Kb1
{[%clk 0:00:10.2]} 40... Rxh7 {[%clk 0:00:13.7]} 41. Rf5 {[%clk 0:00:10.3]}
41... Kc6 {[%clk 0:00:13.2]} 42. Rf6+ {[%clk 0:00:10.4]} 42... Kc5 {[%clk
0:00:13.4]} 0-1

[Event "*** Titled Tuesday Blitz"]
[Site "Chess.com"]
[Date "2021.02.02"]
[Round "4"]
[White "JoachimMouhamad"]
[Black "WPWPWP-2015"]
[Result "0-1"]
[WhiteElo "2307"]
[BlackElo "2474"]
[TimeControl "180+1"]
[EndTime "10:42:07 PST"]
[Termination "WPWPWP-2015 won on time"]

1. e4 {[%clk 0:03:00.9]} 1... e5 {[%clk 0:01:02.6]} 2. Nf3 {[%clk 0:02:59]} 2...
Nc6 {[%clk 0:01:02.2]} 3. Bb5 {[%clk 0:02:57.6]} 3... Nf6 {[%clk 0:01:02.2]} 4.
O-O {[%clk 0:02:56.4]} 4... Nxe4 {[%clk 0:01:02.3]} 5. d4 {[%clk 0:02:56.9]}
5... Nd6 {[%clk 0:01:02.4]} 6. Bxc6 {[%clk 0:02:57.6]} 6... dxc6 {[%clk
0:01:02.2]} 7. dxe5 {[%clk 0:02:58.5]} 7... Nf5 {[%clk 0:01:02.5]} 8. Qxd8+
{[%clk 0:02:59.4]} 8... Kxd8 {[%clk 0:01:03.2]} 9. Nc3 {[%clk 0:02:59.7]} 9...
h6 {[%clk 0:01:02.7]} 10. h3 {[%clk 0:02:59.4]} 10... Ke8 {[%clk 0:01:02.7]} 11.
Re1 {[%clk 0:02:40.1]} 11... Be7 {[%clk 0:01:02.5]} 12. Bf4 {[%clk 0:02:39]}
12... Nh4 {[%clk 0:01:00.9]} 13. Nxh4 {[%clk 0:02:35]} 13... Bxh4 {[%clk
0:01:00]} 14. Re2 {[%clk 0:02:12.9]} 14... Be6 {[%clk 0:00:58.6]} 15. Rd1 {[%clk
0:01:59.7]} 15... Rd8 {[%clk 0:00:57.7]} 16. Rxd8+ {[%clk 0:01:58.5]} 16... Kxd8
{[%clk 0:00:55.5]} 17. b3 {[%clk 0:01:38.4]} 17... Kc8 {[%clk 0:00:55.2]} 18.
Rd2 {[%clk 0:01:35.7]} 18... Rd8 {[%clk 0:00:53.5]} 19. Rxd8+ {[%clk 0:01:35.9]}
19... Kxd8 {[%clk 0:00:53.5]} 20. g3 {[%clk 0:01:29.5]} 20... Be7 {[%clk
0:00:52.6]} 21. g4 {[%clk 0:01:26.5]} 21... Bb4 {[%clk 0:00:48.2]} 22. Ne2
{[%clk 0:01:15.1]} 22... Bd5 {[%clk 0:00:47.6]} 23. Kh2 {[%clk 0:01:09.3]} 23...
Be4 {[%clk 0:00:45.8]} 24. c3 {[%clk 0:01:04.6]} 24... Bf8 {[%clk 0:00:35.7]}
25. Be3 {[%clk 0:01:01.5]} 25... Bb1 {[%clk 0:00:29.4]} 26. Nc1 {[%clk 0:00:41]}
26... a5 {[%clk 0:00:29]} 27. f4 {[%clk 0:00:38.7]} 27... g6 {[%clk 0:00:26.4]}
28. Kg3 {[%clk 0:00:38.6]} 28... b5 {[%clk 0:00:24.6]} 29. Kf3 {[%clk
0:00:38.3]} 29... c5 {[%clk 0:00:23.8]} 30. c4 {[%clk 0:00:36.3]} 30... bxc4
{[%clk 0:00:21.4]} 31. bxc4 {[%clk 0:00:36.3]} 31... a4 {[%clk 0:00:21.4]} 32.
Ke2 {[%clk 0:00:28.7]} 32... Kd7 {[%clk 0:00:21.4]} 33. Kd2 {[%clk 0:00:28.5]}
33... Be4 {[%clk 0:00:18.7]} 34. Ne2 {[%clk 0:00:22.9]} 34... Bg2 {[%clk
0:00:16.6]} 35. Ng1 {[%clk 0:00:20.8]} 35... Kc6 {[%clk 0:00:15.7]} 36. Kc3
{[%clk 0:00:20.5]} 36... Be4 {[%clk 0:00:15]} 37. Ne2 {[%clk 0:00:15.6]} 37...
Bg7 {[%clk 0:00:14.9]} 38. Ng1 {[%clk 0:00:05.5]} 38... f6 {[%clk 0:00:14.8]}
39. exf6 {[%clk 0:00:03.5]} 39... Bxf6+ {[%clk 0:00:15.3]} 40. Kd2 {[%clk
0:00:03.7]} 40... Bb1 {[%clk 0:00:14.5]} 0-1

[Event "*** Titled Tuesday Blitz"]
[Site "Chess.com"]
[Date "2021.02.02"]
[Round "4"]
[White "Ariadna_Atreides"]
[Black "Phriex"]
[Result "1-0"]
[WhiteElo "2180"]
[BlackElo "2388"]
[TimeControl "180+1"]
[EndTime "10:42:07 PST"]
[Termination "Ariadna_Atreides won by resignation"]

1. Nf3 {[%clk 0:03:00.9]} 1... d5 {[%clk 0:03:00]} 2. d4 {[%clk 0:03:00.2]} 2...
Nf6 {[%clk 0:03:00.2]} 3. c4 {[%clk 0:02:58.4]} 3... c6 {[%clk 0:03:00.3]} 4.
Nbd2 {[%clk 0:02:57]} 4... g6 {[%clk 0:02:56.9]} 5. e3 {[%clk 0:02:54.9]} 5...
Bg7 {[%clk 0:02:57.2]} 6. Bd3 {[%clk 0:02:54.9]} 6... O-O {[%clk 0:02:57.7]} 7.
O-O {[%clk 0:02:54.4]} 7... Bg4 {[%clk 0:02:56.5]} 8. h3 {[%clk 0:02:52.7]} 8...
Bxf3 {[%clk 0:02:56.4]} 9. Nxf3 {[%clk 0:02:52.2]} 9... e6 {[%clk 0:02:57.3]}
10. b3 {[%clk 0:02:44.9]} 10... a6 {[%clk 0:02:56.8]} 11. Bb2 {[%clk 0:02:38]}
11... Nbd7 {[%clk 0:02:56.4]} 12. Ne5 {[%clk 0:02:30.4]} 12... Nxe5 {[%clk
0:02:56]} 13. dxe5 {[%clk 0:02:30]} 13... Nd7 {[%clk 0:02:53.7]} 14. f4 {[%clk
0:02:29.4]} 14... dxc4 {[%clk 0:02:51.9]} 15. Bxc4 {[%clk 0:02:26.7]} 15... b5
{[%clk 0:02:51.8]} 16. Be2 {[%clk 0:02:25.8]} 16... Nb6 {[%clk 0:02:52.2]} 17.
Qc2 {[%clk 0:02:21.9]} 17... Qc7 {[%clk 0:02:51.6]} 18. e4 {[%clk 0:02:20.1]}
18... Rfd8 {[%clk 0:02:50.5]} 19. Rac1 {[%clk 0:02:18.3]} 19... Rac8 {[%clk
0:02:48.7]} 20. Ba3 {[%clk 0:02:14.6]} 20... Bf8 {[%clk 0:02:47.3]} 21. Bxf8
{[%clk 0:02:08]} 21... Kxf8 {[%clk 0:02:46.8]} 22. Qc3 {[%clk 0:01:42.7]} 22...
c5 {[%clk 0:02:43.8]} 23. f5 {[%clk 0:01:23]} 23... b4 {[%clk 0:02:42.9]} 24.
Qb2 {[%clk 0:01:19.7]} 24... Kg8 {[%clk 0:02:37]} 25. Bxa6 {[%clk 0:01:11.7]}
25... Ra8 {[%clk 0:02:34.8]} 26. Bc4 {[%clk 0:01:08.1]} 26... Nd7 {[%clk
0:02:09.7]} 27. fxe6 {[%clk 0:01:05.7]} 27... Qxe5 {[%clk 0:02:10.2]} 28. exf7+
{[%clk 0:00:52.1]} 28... Kf8 {[%clk 0:02:07.9]} 29. Qd2 {[%clk 0:00:37.4]} 29...
Nb6 {[%clk 0:02:02.8]} 30. Qh6+ {[%clk 0:00:35.7]} 30... Qg7 {[%clk 0:02:03.3]}
31. Qxg7+ {[%clk 0:00:32.3]} 31... Kxg7 {[%clk 0:02:04.2]} 32. e5 {[%clk
0:00:31.5]} 32... Ra7 {[%clk 0:01:55.4]} 33. e6 {[%clk 0:00:31]} 33... Re7
{[%clk 0:01:54.3]} 34. Rce1 {[%clk 0:00:27.8]} 34... Rf8 {[%clk 0:01:51.5]} 35.
Re5 {[%clk 0:00:26.1]} 35... h6 {[%clk 0:01:47.4]} 36. Rxc5 {[%clk 0:00:24.7]}
36... Nxc4 {[%clk 0:01:47.3]} 37. Rxc4 {[%clk 0:00:23.1]} 37... Rxe6 {[%clk
0:01:47.9]} 38. Rxb4 {[%clk 0:00:22.9]} 38... Rxf7 {[%clk 0:01:47]} 39. Rxf7+
{[%clk 0:00:22.1]} 39... Kxf7 {[%clk 0:01:47.9]} 40. a4 {[%clk 0:00:21.7]} 40...
Re2 {[%clk 0:01:45.4]} 41. Rb7+ {[%clk 0:00:15.6]} 41... Kf6 {[%clk 0:01:45.2]}
42. a5 {[%clk 0:00:15.3]} 42... Kg5 {[%clk 0:01:43.4]} 43. a6 {[%clk 0:00:11.9]}
43... Kh4 {[%clk 0:01:43.6]} 44. Kh2 {[%clk 0:00:11.7]} 44... g5 {[%clk
0:01:40.6]} 45. a7 {[%clk 0:00:11]} 45... Ra2 {[%clk 0:01:41.2]} 46. b4 {[%clk
0:00:09.3]} 46... h5 {[%clk 0:01:41.5]} 47. b5 {[%clk 0:00:07.8]} 47... g4
{[%clk 0:01:42]} 48. hxg4 {[%clk 0:00:07.8]} 48... hxg4 {[%clk 0:01:42.9]} 49.
Rh7+ {[%clk 0:00:07.4]} 49... Kg5 {[%clk 0:01:43.2]} 50. b6 {[%clk 0:00:07]}
50... Kf4 {[%clk 0:01:43.7]} 51. Rf7+ {[%clk 0:00:07]} 51... Kg5 {[%clk
0:01:42.7]} 52. b7 {[%clk 0:00:06.7]} 52... Rxa7 {[%clk 0:01:42.6]} 53. Rg7+
{[%clk 0:00:04.8]} 53... Kf6 {[%clk 0:01:37.4]} 54. b8=Q {[%clk 0:00:04.9]}
54... Rxg7 {[%clk 0:01:37.8]} 55. Qb6+ {[%clk 0:00:04.7]} 55... Kf5 {[%clk
0:01:37.2]} 56. Qc5+ {[%clk 0:00:05]} 56... Kg6 {[%clk 0:01:36.2]} 57. Qd6+
{[%clk 0:00:05]} 57... Kf5 {[%clk 0:01:33.1]} 58. Qd3+ {[%clk 0:00:05.9]} 58...
Kg5 {[%clk 0:01:31.2]} 59. Kg3 {[%clk 0:00:06.8]} 59... Re7 {[%clk 0:01:25.6]}
60. Qd5+ {[%clk 0:00:06.6]} 60... Kf6 {[%clk 0:01:24.7]} 61. Kxg4 {[%clk
0:00:07]} 61... Rg7+ {[%clk 0:01:25.3]} 62. Kf4 {[%clk 0:00:06.1]} 62... Kg6
{[%clk 0:01:23.6]} 63. Qf5+ {[%clk 0:00:05.2]} 63... Kh6 {[%clk 0:01:23.5]} 64.
g4 {[%clk 0:00:05.9]} 64... Rg6 {[%clk 0:01:20]} 65. g5+ {[%clk 0:00:06.1]}
65... Kg7 {[%clk 0:01:20.1]} 66. Qd7+ {[%clk 0:00:05.9]} 66... Kg8 {[%clk
0:01:19.5]} 67. Kf5 {[%clk 0:00:06.5]} 67... Rg7 {[%clk 0:01:19.9]} 68. Qe8+
{[%clk 0:00:06.1]} 68... Kh7 {[%clk 0:01:20]} 69. g6+ {[%clk 0:00:06.4]} 69...
Kh6 {[%clk 0:01:18.4]} 70. Qh8+ {[%clk 0:00:06.6]} 1-0

[Event "*** Titled Tuesday Blitz"]
[Site "Chess.com"]
[Date "2021.02.02"]
[Round "4"]
[White "MasterLeif"]
[Black "lamomiablanca"]
[Result "0-1"]
[WhiteElo "2436"]
[BlackElo "2302"]
[TimeControl "180+1"]
[EndTime "10:42:08 PST"]
[Termination "lamomiablanca won by checkmate"]

1. d4 {[%clk 0:03:00.3]} 1... Nf6 {[%clk 0:02:58.5]} 2. c4 {[%clk 0:03:00.3]}
2... b6 {[%clk 0:02:53.6]} 3. Nc3 {[%clk 0:02:55.4]} 3... Bb7 {[%clk 0:02:53.1]}
4. Nf3 {[%clk 0:02:48.2]} 4... e6 {[%clk 0:02:35.9]} 5. e3 {[%clk 0:02:30.2]}
5... Bb4 {[%clk 0:02:33.8]} 6. Bd3 {[%clk 0:02:28.3]} 6... Bxc3+ {[%clk
0:02:32.9]} 7. bxc3 {[%clk 0:02:28]} 7... c5 {[%clk 0:02:32.9]} 8. O-O {[%clk
0:02:26.7]} 8... O-O {[%clk 0:02:27.2]} 9. a4 {[%clk 0:02:24.3]} 9... d6 {[%clk
0:02:20.1]} 10. Re1 {[%clk 0:02:21.7]} 10... Nc6 {[%clk 0:01:54.4]} 11. h3
{[%clk 0:02:17.8]} 11... e5 {[%clk 0:01:51.1]} 12. d5 {[%clk 0:01:42.8]} 12...
Na5 {[%clk 0:01:47.9]} 13. Qc2 {[%clk 0:01:39.7]} 13... Re8 {[%clk 0:01:33.8]}
14. e4 {[%clk 0:01:39.5]} 14... Ba6 {[%clk 0:01:32.5]} 15. Qe2 {[%clk
0:01:24.1]} 15... Qd7 {[%clk 0:01:18.1]} 16. Bg5 {[%clk 0:01:22.1]} 16... Nh5
{[%clk 0:01:14.6]} 17. Nd4 {[%clk 0:01:04]} 17... cxd4 {[%clk 0:01:00.9]} 18.
Qxh5 {[%clk 0:01:03.3]} 18... dxc3 {[%clk 0:00:59.4]} 19. Rac1 {[%clk
0:00:58.9]} 19... Bxc4 {[%clk 0:00:34.6]} 20. Bxc4 {[%clk 0:00:52.7]} 20... Nxc4
{[%clk 0:00:35.2]} 21. Rxc3 {[%clk 0:00:53.1]} 21... f6 {[%clk 0:00:17.1]} 22.
Bxf6 {[%clk 0:00:42.4]} 22... gxf6 {[%clk 0:00:18]} 23. Rxc4 {[%clk 0:00:39.1]}
23... Rac8 {[%clk 0:00:15.1]} 24. Rec1 {[%clk 0:00:28.3]} 24... Rc5 {[%clk
0:00:11.4]} 25. R4c3 {[%clk 0:00:20.6]} 25... Re7 {[%clk 0:00:09.9]} 26. Kh2
{[%clk 0:00:18.1]} 26... Rg7 {[%clk 0:00:08.3]} 27. Qf3 {[%clk 0:00:16.9]} 27...
Rg6 {[%clk 0:00:06.2]} 28. h4 {[%clk 0:00:13.6]} 28... Qg4 {[%clk 0:00:04.8]}
29. Qh3 {[%clk 0:00:06.4]} 29... Qxe4 {[%clk 0:00:03.9]} 30. Qe6+ {[%clk
0:00:05.5]} 30... Kg7 {[%clk 0:00:04.7]} 31. f3 {[%clk 0:00:04.3]} 31... Qf4+
{[%clk 0:00:04.6]} 32. Kh1 {[%clk 0:00:03.4]} 32... Qxh4+ {[%clk 0:00:04.9]} 33.
Kg1 {[%clk 0:00:03.1]} 33... Qd4+ {[%clk 0:00:05.8]} 34. Kh2 {[%clk 0:00:01.5]}
34... Rxc3 {[%clk 0:00:06.3]} 35. Qe7+ {[%clk 0:00:02.1]} 35... Kh6 {[%clk
0:00:06.6]} 36. Qf8+ {[%clk 0:00:02.5]} 36... Rg7 {[%clk 0:00:06.2]} 37. Re1
{[%clk 0:00:02.5]} 37... Qf4+ {[%clk 0:00:05.7]} 38. Kh1 {[%clk 0:00:02.4]}
38... Qh4+ {[%clk 0:00:05]} 39. Kg1 {[%clk 0:00:02.2]} 39... Qxe1+ {[%clk
0:00:05.9]} 40. Kh2 {[%clk 0:00:03.1]} 40... Qh4+ {[%clk 0:00:06.1]} 41. Kg1
{[%clk 0:00:03.2]} 41... Rc1# {[%clk 0:00:06.8]} 0-1

[Event "*** Titled Tuesday Blitz"]
[Site "Chess.com"]
[Date "2021.02.02"]
[Round "4"]
[White "benko_008"]
[Black "zimmm36"]
[Result "1-0"]
[WhiteElo "2384"]
[BlackElo "2046"]
[TimeControl "180+1"]
[EndTime "10:42:08 PST"]
[Termination "benko_008 won by resignation"]

1. d4 {[%clk 0:03:00.9]} 1... Nf6 {[%clk 0:02:59.3]} 2. Bg5 {[%clk 0:02:59.6]}
2... Ne4 {[%clk 0:02:58.8]} 3. h4 {[%clk 0:02:59.1]} 3... c5 {[%clk 0:02:58.5]}
4. dxc5 {[%clk 0:02:58.5]} 4... Nxg5 {[%clk 0:02:57.5]} 5. hxg5 {[%clk
0:02:57.9]} 5... Qa5+ {[%clk 0:02:57.9]} 6. Nd2 {[%clk 0:02:56.1]} 6... Qxc5
{[%clk 0:02:56.6]} 7. g6 {[%clk 0:02:55.5]} 7... fxg6 {[%clk 0:02:55.9]} 8. e3
{[%clk 0:02:55.8]} 8... d5 {[%clk 0:02:54.9]} 9. Bd3 {[%clk 0:02:55.5]} 9... Qd6
{[%clk 0:02:53]} 10. c4 {[%clk 0:02:40.6]} 10... Bf5 {[%clk 0:02:39.8]} 11. Qc2
{[%clk 0:02:12.5]} 11... Bxd3 {[%clk 0:02:30.9]} 12. Qxd3 {[%clk 0:02:12.1]}
12... Nc6 {[%clk 0:02:30.3]} 13. cxd5 {[%clk 0:02:08.1]} 13... Ne5 {[%clk
0:02:12.6]} 14. Qb5+ {[%clk 0:02:05.9]} 14... Qd7 {[%clk 0:02:05.8]} 15. Qxd7+
{[%clk 0:02:00.6]} 15... Kxd7 {[%clk 0:02:06.7]} 16. Ke2 {[%clk 0:01:59.5]}
16... Rc8 {[%clk 0:02:05.3]} 17. f4 {[%clk 0:01:55.1]} 17... Nf7 {[%clk
0:02:04.8]} 18. Ngf3 {[%clk 0:01:49.2]} 18... e6 {[%clk 0:02:00.9]} 19. dxe6+
{[%clk 0:01:47]} 19... Kxe6 {[%clk 0:02:01.8]} 20. Rac1 {[%clk 0:01:44.1]} 20...
Bc5 {[%clk 0:01:56.6]} 21. Ne4 {[%clk 0:01:37.1]} 21... Be7 {[%clk 0:01:44.8]}
22. Rxc8 {[%clk 0:01:32]} 22... Rxc8 {[%clk 0:01:45.7]} 23. Nd4+ {[%clk
0:01:29.8]} 23... Kd5 {[%clk 0:01:34.1]} 24. Nc3+ {[%clk 0:01:29.4]} 24... Kc4
{[%clk 0:01:34.1]} 25. Rc1 {[%clk 0:01:02.2]} 25... Rd8 {[%clk 0:01:18.2]} 26.
Ne6 {[%clk 0:00:48]} 26... Rd7 {[%clk 0:01:14.6]} 27. Nd4 {[%clk 0:00:35.2]}
27... Kb4 {[%clk 0:01:11.3]} 28. a3+ {[%clk 0:00:34.6]} 28... Ka5 {[%clk
0:01:08]} 29. b4+ {[%clk 0:00:34.8]} 29... Kb6 {[%clk 0:01:08]} 30. Na4+ {[%clk
0:00:34.5]} 30... Ka6 {[%clk 0:01:06.6]} 31. Nc5+ {[%clk 0:00:33.1]} 31... Bxc5
{[%clk 0:01:05.6]} 32. Rxc5 {[%clk 0:00:34]} 32... Nd6 {[%clk 0:01:03.9]} 33.
Rd5 {[%clk 0:00:30.4]} 33... Kb6 {[%clk 0:00:53.4]} 34. Nb5 {[%clk 0:00:20.6]}
34... Kc6 {[%clk 0:00:44]} 35. Rxd6+ {[%clk 0:00:20.8]} 35... Rxd6 {[%clk
0:00:42.5]} 36. Nxd6 {[%clk 0:00:21.7]} 36... Kxd6 {[%clk 0:00:43.3]} 37. e4
{[%clk 0:00:22.1]} 37... Ke6 {[%clk 0:00:43]} 38. Ke3 {[%clk 0:00:22.2]} 38...
Kf6 {[%clk 0:00:42.1]} 39. Kd4 {[%clk 0:00:22]} 39... Ke6 {[%clk 0:00:38.6]} 40.
e5 {[%clk 0:00:20.5]} 40... h6 {[%clk 0:00:35.7]} 41. Ke4 {[%clk 0:00:20.2]}
41... b6 {[%clk 0:00:30.2]} 42. b5 {[%clk 0:00:20.2]} 42... h5 {[%clk
0:00:22.1]} 43. g3 {[%clk 0:00:20.2]} 43... g5 {[%clk 0:00:19]} 44. fxg5 {[%clk
0:00:16.2]} 44... g6 {[%clk 0:00:18.5]} 45. a4 {[%clk 0:00:15.7]} 45... Ke7
{[%clk 0:00:17.6]} 46. Kd5 {[%clk 0:00:15.8]} 46... Kd7 {[%clk 0:00:17.4]} 47.
e6+ {[%clk 0:00:16.1]} 1-0

[Event "*** Titled Tuesday Blitz"]
[Site "Chess.com"]
[Date "2021.02.02"]
[Round "4"]
[White "FearNoEvil12"]
[Black "Das_Virus_2020"]
[Result "0-1"]
[WhiteElo "2195"]
[BlackElo "2419"]
[TimeControl "180+1"]
[EndTime "10:42:09 PST"]
[Termination "Das_Virus_2020 won by resignation"]

1. e4 {[%clk 0:03:00.9]} 1... e6 {[%clk 0:03:00]} 2. d4 {[%clk 0:02:59.7]} 2...
d5 {[%clk 0:03:00.3]} 3. Nc3 {[%clk 0:02:59.6]} 3... Nf6 {[%clk 0:03:00]} 4. Qd3
{[%clk 0:02:59.9]} 4... c5 {[%clk 0:02:48.8]} 5. Bg5 {[%clk 0:02:56]} 5... cxd4
{[%clk 0:02:43.5]} 6. Qxd4 {[%clk 0:02:54.9]} 6... Nc6 {[%clk 0:02:43.1]} 7. Bb5
{[%clk 0:02:53.8]} 7... dxe4 {[%clk 0:02:22.9]} 8. Qxd8+ {[%clk 0:02:48.2]} 8...
Kxd8 {[%clk 0:02:22.1]} 9. Nxe4 {[%clk 0:02:44.6]} 9... Be7 {[%clk 0:02:20.7]}
10. O-O-O+ {[%clk 0:02:43.2]} 10... Kc7 {[%clk 0:02:09.2]} 11. Nc3 {[%clk
0:02:22]} 11... Bd7 {[%clk 0:02:02.2]} 12. Bxc6 {[%clk 0:02:20]} 12... Bxc6
{[%clk 0:02:00.9]} 13. Bf4+ {[%clk 0:02:20.3]} 13... Kc8 {[%clk 0:02:00]} 14.
Nf3 {[%clk 0:02:17.7]} 14... Nd5 {[%clk 0:01:16.9]} 15. Nxd5 {[%clk 0:02:13.7]}
15... Bxd5 {[%clk 0:01:17.8]} 16. Ne5 {[%clk 0:02:10.5]} 16... f6 {[%clk
0:01:14.1]} 17. Nf7 {[%clk 0:02:01]} 17... Rf8 {[%clk 0:01:13.3]} 18. Nd6+
{[%clk 0:02:00.1]} 18... Bxd6 {[%clk 0:01:02.7]} 19. Bxd6 {[%clk 0:01:59.4]}
19... Rd8 {[%clk 0:01:03.2]} 20. Bg3 {[%clk 0:01:52.1]} 20... Bxg2 {[%clk
0:01:01.1]} 21. Rhe1 {[%clk 0:01:50.6]} 21... Rxd1+ {[%clk 0:00:58.7]} 22. Kxd1
{[%clk 0:01:49.2]} 22... Bd5 {[%clk 0:00:57.9]} 23. b3 {[%clk 0:01:48.1]} 23...
b5 {[%clk 0:00:57.8]} 24. Kd2 {[%clk 0:01:47.1]} 24... Kb7 {[%clk 0:00:57.6]}
25. Kd3 {[%clk 0:01:45.7]} 25... Rc8 {[%clk 0:00:57.2]} 26. c3 {[%clk
0:01:43.7]} 26... a5 {[%clk 0:00:55.2]} 27. f4 {[%clk 0:01:37.9]} 27... Rd8
{[%clk 0:00:52.7]} 28. Ke3 {[%clk 0:01:34.6]} 28... a4 {[%clk 0:00:47.6]} 29.
bxa4 {[%clk 0:01:33.3]} 29... bxa4 {[%clk 0:00:47.8]} 30. a3 {[%clk 0:01:32.3]}
30... Kc6 {[%clk 0:00:46.6]} 31. Rb1 {[%clk 0:01:32.4]} 31... Bb3 {[%clk
0:00:46.6]} 32. Rb2 {[%clk 0:01:30.2]} 32... Kb5 {[%clk 0:00:44.6]} 33. Rd2
{[%clk 0:01:27.5]} 33... Bd5 {[%clk 0:00:24.7]} 34. Rd4 {[%clk 0:01:25.4]} 34...
Rc8 {[%clk 0:00:21.9]} 35. Kd2 {[%clk 0:01:22.4]} 35... Rc4 {[%clk 0:00:17.8]}
36. Bf2 {[%clk 0:01:18]} 36... Rxd4+ {[%clk 0:00:17.7]} 37. Bxd4 {[%clk
0:01:17.6]} 37... Kc4 {[%clk 0:00:18.2]} 38. Kc2 {[%clk 0:01:17.1]} 38... Be4+
{[%clk 0:00:16.6]} 39. Kb2 {[%clk 0:01:16.3]} 39... Kd3 {[%clk 0:00:16.7]} 40.
h4 {[%clk 0:01:13.3]} 40... h5 {[%clk 0:00:15.7]} 41. Bc5 {[%clk 0:01:10.4]}
41... Bd5 {[%clk 0:00:13.9]} 42. Bf8 {[%clk 0:01:09.4]} 42... g6 {[%clk
0:00:12.6]} 43. Bg7 {[%clk 0:01:09.2]} 43... f5 {[%clk 0:00:11.5]} 44. Be5
{[%clk 0:01:09]} 44... Bc4 {[%clk 0:00:11.6]} 45. Bf6 {[%clk 0:01:07.7]} 45...
Ke4 {[%clk 0:00:11.4]} 46. Be5 {[%clk 0:01:07.2]} 46... Kf3 {[%clk 0:00:11.5]}
47. Kc2 {[%clk 0:01:06.4]} 47... Kg4 {[%clk 0:00:11]} 48. Kd2 {[%clk 0:01:03.7]}
48... Kxh4 {[%clk 0:00:11.2]} 49. Ke3 {[%clk 0:01:03.7]} 49... Kg3 {[%clk
0:00:11.6]} 50. Kd4 {[%clk 0:01:03.8]} 50... Ba6 {[%clk 0:00:11.6]} 51. c4
{[%clk 0:01:01.6]} 51... h4 {[%clk 0:00:11.8]} 52. c5 {[%clk 0:00:57]} 52... h3
{[%clk 0:00:12]} 53. c6 {[%clk 0:00:56.8]} 53... h2 {[%clk 0:00:11.8]} 54. Kc5
{[%clk 0:00:57.3]} 54... h1=Q {[%clk 0:00:11.7]} 55. Kb6 {[%clk 0:00:58.2]}
55... Bc8 {[%clk 0:00:09.9]} 56. Kc7 {[%clk 0:00:57.1]} 56... Qd5 {[%clk
0:00:10.1]} 57. Kxc8 {[%clk 0:00:55.8]} 57... Qxc6+ {[%clk 0:00:09.6]} 58. Kd8
{[%clk 0:00:56.2]} 58... Qc5 {[%clk 0:00:09.9]} 59. Kd7 {[%clk 0:00:54.8]} 59...
Qxa3 {[%clk 0:00:10.2]} 60. Kxe6 {[%clk 0:00:54.2]} 60... Qb3+ {[%clk
0:00:10.4]} 61. Kf6 {[%clk 0:00:53.7]} 61... Kg4 {[%clk 0:00:10.4]} 62. Kxg6
{[%clk 0:00:54]} 62... a3 {[%clk 0:00:10.8]} 63. Kf6 {[%clk 0:00:52.9]} 63... a2
{[%clk 0:00:11.2]} 64. Kg6 {[%clk 0:00:53.8]} 64... Qb1 {[%clk 0:00:11.3]} 65.
Kf6 {[%clk 0:00:53]} 65... a1=Q {[%clk 0:00:12.2]} 0-1